[Event "Early-Titled-Tuesday-Blitz-April-02-2024"]
[Site "Chess.com"]
[Date "2024.04.02"]
[Round "4"]
[White "Matibar"]
[Black "agvania123"]
[Result "1-0"]
[WhiteElo "2724"]
[BlackElo "2412"]
[TimeControl "180+1"]
[EndTime "8:39:09 PDT"]
[Termination "Matibar won by resignation"]

1. Nc3 {[%clk 0:02:55.7]} 1... d5 {[%clk 0:02:52.9]} 2. Nf3 {[%clk 0:02:54.5]}
2... Nf6 {[%clk 0:02:52.2]} 3. e3 {[%clk 0:02:53.2]} 3... g6 {[%clk 0:02:52]} 4.
g3 {[%clk 0:02:48.8]} 4... Bg7 {[%clk 0:02:52.3]} 5. Bg2 {[%clk 0:02:49.4]} 5...
O-O {[%clk 0:02:52.7]} 6. O-O {[%clk 0:02:50.3]} 6... c5 {[%clk 0:02:52.3]} 7.
b3 {[%clk 0:02:49.6]} 7... Nc6 {[%clk 0:02:52.6]} 8. Bb2 {[%clk 0:02:49.8]} 8...
b6 {[%clk 0:02:52.6]} 9. d3 {[%clk 0:02:46.8]} 9... Bb7 {[%clk 0:02:53]} 10. Re1
{[%clk 0:02:46.8]} 10... e6 {[%clk 0:02:50.1]} 11. h4 {[%clk 0:02:43.3]} 11...
Qc7 {[%clk 0:02:45.4]} 12. a4 {[%clk 0:02:38.7]} 12... a6 {[%clk 0:02:44.7]} 13.
Qc1 {[%clk 0:02:34.6]} 13... Rad8 {[%clk 0:02:41.4]} 14. e4 {[%clk 0:02:34.6]}
14... dxe4 {[%clk 0:02:41]} 15. Nxe4 {[%clk 0:02:34.5]} 15... Nxe4 {[%clk
0:02:38.6]} 16. Bxg7 {[%clk 0:02:18.4]} 16... Kxg7 {[%clk 0:02:28]} 17. dxe4
{[%clk 0:02:17.7]} 17... Nd4 {[%clk 0:02:20.8]} 18. Qb2 {[%clk 0:02:17]} 18...
e5 {[%clk 0:02:17.4]} 19. Rad1 {[%clk 0:02:08.6]} 19... f6 {[%clk 0:02:10.9]}
20. Nh2 {[%clk 0:01:57.5]} 20... h5 {[%clk 0:01:47.2]} 21. c3 {[%clk 0:01:53.8]}
21... Ne6 {[%clk 0:01:37.8]} 22. Nf1 {[%clk 0:01:53.6]} 22... Rxd1 {[%clk
0:01:36]} 23. Rxd1 {[%clk 0:01:54.5]} 23... Rd8 {[%clk 0:01:35.8]} 24. Rxd8
{[%clk 0:01:44.4]} 24... Qxd8 {[%clk 0:01:36.7]} 25. Qc2 {[%clk 0:01:44.7]}
25... c4 {[%clk 0:01:19.2]} 26. b4 {[%clk 0:01:29.5]} 26... a5 {[%clk
0:01:04.8]} 27. Ne3 {[%clk 0:01:23.8]} 27... Qd3 {[%clk 0:00:42]} 28. Qxd3
{[%clk 0:01:23.2]} 28... cxd3 {[%clk 0:00:42.9]} 29. Kf1 {[%clk 0:01:23.6]}
29... axb4 {[%clk 0:00:39.3]} 30. cxb4 {[%clk 0:01:23.2]} 30... Nd4 {[%clk
0:00:33.9]} 31. Ke1 {[%clk 0:01:19.4]} 31... f5 {[%clk 0:00:26.8]} 32. exf5
{[%clk 0:00:58.8]} 32... Bxg2 {[%clk 0:00:26.6]} 33. Nxg2 {[%clk 0:00:49.7]}
33... Nc2+ {[%clk 0:00:18.8]} 34. Kd2 {[%clk 0:00:49.7]} 34... Nxb4 {[%clk
0:00:18.6]} 35. fxg6 {[%clk 0:00:47.8]} 35... Kxg6 {[%clk 0:00:18.6]} 36. Ne3
{[%clk 0:00:48.4]} 36... e4 {[%clk 0:00:17.4]} 37. Nc4 {[%clk 0:00:47.8]} 37...
Nc6 {[%clk 0:00:15.3]} 38. Nd6 {[%clk 0:00:40.1]} 38... Kf6 {[%clk 0:00:12.6]}
39. Nxe4+ {[%clk 0:00:39.8]} 39... Ke5 {[%clk 0:00:13.2]} 40. Kxd3 {[%clk
0:00:34.8]} 40... Nb4+ {[%clk 0:00:13.3]} 41. Kc4 {[%clk 0:00:34.5]} 41... Kxe4
{[%clk 0:00:11.9]} 42. Kxb4 {[%clk 0:00:34.7]} 42... Kf3 {[%clk 0:00:12.6]} 43.
Kb5 {[%clk 0:00:35.1]} 43... Kxf2 {[%clk 0:00:13.2]} 44. Kxb6 {[%clk 0:00:35.6]}
44... Kxg3 {[%clk 0:00:13.9]} 45. a5 {[%clk 0:00:36]} 45... Kxh4 {[%clk
0:00:14.6]} 46. a6 {[%clk 0:00:36.5]} 46... Kg3 {[%clk 0:00:15.3]} 47. a7 {[%clk
0:00:37]} 47... h4 {[%clk 0:00:15.3]} 48. a8=Q {[%clk 0:00:37.4]} 48... Kh2
{[%clk 0:00:14.9]} 49. Qa2+ {[%clk 0:00:36.4]} 49... Kh1 {[%clk 0:00:14.4]} 50.
Qb1+ {[%clk 0:00:36.5]} 50... Kh2 {[%clk 0:00:14]} 51. Qc2+ {[%clk 0:00:37.4]}
51... Kh1 {[%clk 0:00:13.3]} 52. Qd1+ {[%clk 0:00:38.3]} 52... Kh2 {[%clk
0:00:12.8]} 53. Qe2+ {[%clk 0:00:39.2]} 53... Kg3 {[%clk 0:00:09]} 54. Qe3+
{[%clk 0:00:37.4]} 54... Kg2 {[%clk 0:00:08.7]} 55. Qg5+ {[%clk 0:00:37.6]}
55... Kh3 {[%clk 0:00:08.5]} 56. Kc5 {[%clk 0:00:37.8]} 1-0

[Event "Early-Titled-Tuesday-Blitz-April-02-2024"]
[Site "Chess.com"]
[Date "2024.04.02"]
[Round "4"]
[White "Kimkibo"]
[Black "campochess"]
[Result "0-1"]
[WhiteElo "2374"]
[BlackElo "2193"]
[TimeControl "180+1"]
[EndTime "8:39:09 PDT"]
[Termination "campochess won by resignation"]

1. d4 {[%clk 0:02:59.3]} 1... d5 {[%clk 0:02:57.1]} 2. Nf3 {[%clk 0:02:59.4]}
2... e6 {[%clk 0:02:56.8]} 3. Bf4 {[%clk 0:02:56.9]} 3... a6 {[%clk 0:02:54.2]}
4. e3 {[%clk 0:02:57.2]} 4... Nd7 {[%clk 0:02:53.8]} 5. Be2 {[%clk 0:02:53.2]}
5... Ngf6 {[%clk 0:02:53.5]} 6. h3 {[%clk 0:02:51.1]} 6... Bd6 {[%clk
0:02:52.2]} 7. Ne5 {[%clk 0:02:51.1]} 7... Nf8 {[%clk 0:02:50]} 8. Nd2 {[%clk
0:02:46]} 8... Ng6 {[%clk 0:02:49.8]} 9. Bh2 {[%clk 0:02:45.7]} 9... Bxe5 {[%clk
0:02:47.8]} 10. dxe5 {[%clk 0:02:45.8]} 10... Nd7 {[%clk 0:02:47.7]} 11. f4
{[%clk 0:02:45.5]} 11... Nb6 {[%clk 0:02:33.8]} 12. c3 {[%clk 0:02:40.6]} 12...
O-O {[%clk 0:02:33]} 13. O-O {[%clk 0:02:38.7]} 13... f6 {[%clk 0:02:32.9]} 14.
Bh5 {[%clk 0:02:32.7]} 14... Nh8 {[%clk 0:02:26.8]} 15. Nb3 {[%clk 0:02:01.1]}
15... Qe7 {[%clk 0:02:24.7]} 16. Nd4 {[%clk 0:01:58.7]} 16... Bd7 {[%clk
0:02:19.3]} 17. Qe2 {[%clk 0:01:56.4]} 17... c5 {[%clk 0:02:18.9]} 18. Nb3
{[%clk 0:01:53.4]} 18... a5 {[%clk 0:02:13.8]} 19. Rad1 {[%clk 0:01:50.3]} 19...
a4 {[%clk 0:02:13.2]} 20. Nc1 {[%clk 0:01:49.5]} 20... c4 {[%clk 0:02:08.6]} 21.
exf6 {[%clk 0:01:46.5]} 21... Rxf6 {[%clk 0:02:05]} 22. e4 {[%clk 0:01:46.9]}
22... dxe4 {[%clk 0:01:56.6]} 23. Qxe4 {[%clk 0:01:47]} 23... Bc6 {[%clk
0:01:56.8]} 24. Qe2 {[%clk 0:01:39.1]} 24... Raf8 {[%clk 0:01:34.5]} 25. Rde1
{[%clk 0:01:31.4]} 25... Qc5+ {[%clk 0:01:33.2]} 26. Kh1 {[%clk 0:01:31.3]}
26... Ng6 {[%clk 0:01:25.6]} 27. Bxg6 {[%clk 0:01:30.2]} 27... hxg6 {[%clk
0:01:25.3]} 28. Qe3 {[%clk 0:01:25.3]} 28... Qxe3 {[%clk 0:01:24.2]} 29. Rxe3
{[%clk 0:01:26]} 29... Nd5 {[%clk 0:01:24.4]} 30. Re5 {[%clk 0:01:22.7]} 30...
g5 {[%clk 0:01:18.1]} 31. Rfe1 {[%clk 0:01:16.7]} 31... Nxf4 {[%clk 0:01:17.1]}
32. Bxf4 {[%clk 0:01:07.8]} 32... gxf4 {[%clk 0:01:17.1]} 33. Rxe6 {[%clk
0:01:07.1]} 33... f3 {[%clk 0:01:14.2]} 34. gxf3 {[%clk 0:01:05.3]} 34... Rxf3
{[%clk 0:01:12.5]} 35. Kh2 {[%clk 0:01:02.2]} 35... Rf2+ {[%clk 0:01:11.4]} 36.
Kg3 {[%clk 0:01:01.7]} 36... Rg2+ {[%clk 0:01:10.8]} 37. Kh4 {[%clk 0:01:01.2]}
37... Rf4+ {[%clk 0:01:06.8]} 38. Kh5 {[%clk 0:00:59.5]} 38... Rg3 {[%clk
0:00:57.8]} 39. Rxc6 {[%clk 0:00:40.3]} 39... bxc6 {[%clk 0:00:53.9]} 40. Re6
{[%clk 0:00:41.2]} 40... Rf6 {[%clk 0:00:51.3]} 41. Rxf6 {[%clk 0:00:34.3]}
41... gxf6 {[%clk 0:00:50.4]} 42. Ne2 {[%clk 0:00:35.1]} 42... Rxh3+ {[%clk
0:00:47.4]} 43. Kg6 {[%clk 0:00:35.3]} 43... Rh2 {[%clk 0:00:40.6]} 44. Nd4
{[%clk 0:00:33]} 44... Rxb2 {[%clk 0:00:40.3]} 45. Kxf6 {[%clk 0:00:32]} 45...
Rxa2 {[%clk 0:00:40.1]} 46. Ke5 {[%clk 0:00:32.5]} 46... Rc2 {[%clk 0:00:39.6]}
47. Nxc6 {[%clk 0:00:29.8]} 47... Rxc3 {[%clk 0:00:38.8]} 48. Kd4 {[%clk
0:00:29.9]} 48... Rc1 {[%clk 0:00:38.9]} 49. Kc5 {[%clk 0:00:25.2]} 49... a3
{[%clk 0:00:38.9]} 50. Nb4 {[%clk 0:00:24.8]} 50... Rb1 {[%clk 0:00:36]} 51. Na2
{[%clk 0:00:22.2]} 51... Rb2 {[%clk 0:00:35.9]} 52. Nc1 {[%clk 0:00:21.4]} 52...
a2 {[%clk 0:00:34.6]} 0-1

[Event "Early-Titled-Tuesday-Blitz-April-02-2024"]
[Site "Chess.com"]
[Date "2024.04.02"]
[Round "4"]
[White "chessdjw"]
[Black "Vesper2018"]
[Result "1-0"]
[WhiteElo "2795"]
[BlackElo "2590"]
[TimeControl "180+1"]
[EndTime "8:39:11 PDT"]
[Termination "chessdjw won by checkmate"]

1. e4 {[%clk 0:03:00.9]} 1... c5 {[%clk 0:02:59.9]} 2. Nf3 {[%clk 0:03:00.9]}
2... d6 {[%clk 0:03:00.5]} 3. Bc4 {[%clk 0:02:56.5]} 3... Nf6 {[%clk 0:02:55.8]}
4. d3 {[%clk 0:02:56.6]} 4... Nc6 {[%clk 0:02:52.5]} 5. O-O {[%clk 0:02:56.5]}
5... g6 {[%clk 0:02:52.6]} 6. h3 {[%clk 0:02:54.4]} 6... Bg7 {[%clk 0:02:52.8]}
7. c3 {[%clk 0:02:53.8]} 7... O-O {[%clk 0:02:52.4]} 8. a4 {[%clk 0:02:53.6]}
8... e6 {[%clk 0:02:27]} 9. Qe2 {[%clk 0:02:42.4]} 9... d5 {[%clk 0:02:26.3]}
10. Bb5 {[%clk 0:02:42.1]} 10... c4 {[%clk 0:02:16.4]} 11. e5 {[%clk 0:02:21.5]}
11... cxd3 {[%clk 0:02:14.4]} 12. Bxd3 {[%clk 0:02:21.4]} 12... Nd7 {[%clk
0:02:12]} 13. Bf4 {[%clk 0:02:22]} 13... Nc5 {[%clk 0:02:08.5]} 14. Nbd2 {[%clk
0:02:17.7]} 14... Nxd3 {[%clk 0:02:04.7]} 15. Qxd3 {[%clk 0:02:18.6]} 15... Qc7
{[%clk 0:01:54.5]} 16. Rfe1 {[%clk 0:02:17.9]} 16... b6 {[%clk 0:01:54.2]} 17.
b4 {[%clk 0:02:17.3]} 17... Rd8 {[%clk 0:01:50.5]} 18. Nb3 {[%clk 0:02:16.7]}
18... Ne7 {[%clk 0:01:41.3]} 19. Nfd4 {[%clk 0:01:53]} 19... a6 {[%clk
0:01:35.2]} 20. Rac1 {[%clk 0:01:46.7]} 20... Bb7 {[%clk 0:01:29.5]} 21. a5
{[%clk 0:01:44.8]} 21... bxa5 {[%clk 0:01:04.5]} 22. Nxa5 {[%clk 0:01:44]} 22...
Nc6 {[%clk 0:01:02.8]} 23. Naxc6 {[%clk 0:01:33.4]} 23... Bxc6 {[%clk
0:01:02.9]} 24. Ra1 {[%clk 0:01:33.1]} 24... Bb7 {[%clk 0:01:02.7]} 25. Ra5
{[%clk 0:01:31.5]} 25... Rac8 {[%clk 0:00:56.8]} 26. Re3 {[%clk 0:01:23.3]}
26... Qc4 {[%clk 0:00:56]} 27. Qd2 {[%clk 0:01:21.3]} 27... Qc7 {[%clk
0:00:47.1]} 28. h4 {[%clk 0:01:18]} 28... h5 {[%clk 0:00:42.1]} 29. Qe1 {[%clk
0:01:11.1]} 29... Re8 {[%clk 0:00:40.6]} 30. Bg5 {[%clk 0:01:08.7]} 30... Qd7
{[%clk 0:00:35.6]} 31. Rf3 {[%clk 0:01:00.1]} 31... Rc4 {[%clk 0:00:34.9]} 32.
Bf6 {[%clk 0:00:52.1]} 32... Bh6 {[%clk 0:00:33.5]} 33. Bg5 {[%clk 0:00:41]}
33... Bf8 {[%clk 0:00:28.2]} 34. Qd2 {[%clk 0:00:36.6]} 34... Rec8 {[%clk
0:00:22.2]} 35. Ra3 {[%clk 0:00:36.4]} 35... Qc7 {[%clk 0:00:17.5]} 36. Bh6
{[%clk 0:00:29]} 36... Bxh6 {[%clk 0:00:15.5]} 37. Qxh6 {[%clk 0:00:29.9]} 37...
Qxe5 {[%clk 0:00:15.8]} 38. Rg3 {[%clk 0:00:24.3]} 38... Qg7 {[%clk 0:00:11.6]}
39. Qd2 {[%clk 0:00:24.2]} 39... e5 {[%clk 0:00:09.1]} 40. Nb3 {[%clk
0:00:24.3]} 40... d4 {[%clk 0:00:07.9]} 41. Nc5 {[%clk 0:00:24.6]} 41... Bd5
{[%clk 0:00:04.7]} 42. Rxa6 {[%clk 0:00:21.1]} 42... dxc3 {[%clk 0:00:03.5]} 43.
Qxd5 {[%clk 0:00:20.5]} 43... Rd4 {[%clk 0:00:03.6]} 44. Raxg6 {[%clk
0:00:18.4]} 44... Rxd5 {[%clk 0:00:01.2]} 45. Rxg7+ {[%clk 0:00:18.8]} 45... Kh8
{[%clk 0:00:01.7]} 46. R7g5 {[%clk 0:00:18.7]} 46... c2 {[%clk 0:00:01.1]} 47.
Rxh5# {[%clk 0:00:19]} 1-0

[Event "Early-Titled-Tuesday-Blitz-April-02-2024"]
[Site "Chess.com"]
[Date "2024.04.02"]
[Round "4"]
[White "kereswasbest"]
[Black "AccioChess"]
[Result "0-1"]
[WhiteElo "2258"]
[BlackElo "2469"]
[TimeControl "180+1"]
[EndTime "8:39:11 PDT"]
[Termination "AccioChess won by resignation"]

1. e4 {[%clk 0:03:00.9]} 1... e5 {[%clk 0:02:52.5]} 2. Nf3 {[%clk 0:02:59.1]}
2... Nc6 {[%clk 0:02:52.1]} 3. Bb5 {[%clk 0:02:59.4]} 3... a6 {[%clk 0:02:51.8]}
4. Bxc6 {[%clk 0:02:58.4]} 4... dxc6 {[%clk 0:02:50.4]} 5. Nc3 {[%clk
0:02:58.1]} 5... Bd6 {[%clk 0:02:41.6]} 6. d4 {[%clk 0:02:57.7]} 6... f6 {[%clk
0:02:34.1]} 7. dxe5 {[%clk 0:02:57.2]} 7... fxe5 {[%clk 0:02:34.2]} 8. Bg5
{[%clk 0:02:56.2]} 8... Nf6 {[%clk 0:02:33.4]} 9. Qd2 {[%clk 0:02:50.4]} 9...
O-O {[%clk 0:02:32.7]} 10. O-O {[%clk 0:02:48.4]} 10... Be6 {[%clk 0:02:32.7]}
11. h3 {[%clk 0:02:42.7]} 11... Qe8 {[%clk 0:02:32.6]} 12. Qe3 {[%clk
0:02:30.1]} 12... Nh5 {[%clk 0:02:30.6]} 13. Nh2 {[%clk 0:02:19.5]} 13... Qg6
{[%clk 0:02:28.6]} 14. Ne2 {[%clk 0:01:37.8]} 14... h6 {[%clk 0:02:14.1]} 15.
Bh4 {[%clk 0:01:37.5]} 15... Nf4 {[%clk 0:02:09]} 16. Nxf4 {[%clk 0:01:30.3]}
16... Rxf4 {[%clk 0:02:07.7]} 17. Bg3 {[%clk 0:01:18.9]} 17... Rxe4 {[%clk
0:02:07]} 18. Qd3 {[%clk 0:01:13.2]} 18... Bc4 {[%clk 0:02:05.2]} 19. Qc3 {[%clk
0:01:08.2]} 19... Bxf1 {[%clk 0:02:04.7]} 20. Nxf1 {[%clk 0:01:07.4]} 20... Rd4
{[%clk 0:02:03.3]} 21. Ne3 {[%clk 0:01:06.5]} 21... Rd8 {[%clk 0:01:52.1]} 22.
Qb3+ {[%clk 0:01:03.8]} 22... Qf7 {[%clk 0:01:46.4]} 23. Qxb7 {[%clk 0:01:04.7]}
23... Rd2 {[%clk 0:01:27.4]} 24. Qxc6 {[%clk 0:00:42.4]} 24... e4 {[%clk
0:01:27.4]} 25. Bxd6 {[%clk 0:00:34.9]} 25... Qxf2+ {[%clk 0:01:26]} 26. Kh1
{[%clk 0:00:33.6]} 26... Qxe3 {[%clk 0:01:23.5]} 27. Qc4+ {[%clk 0:00:21.8]}
27... Kh7 {[%clk 0:01:22.3]} 28. Bxc7 {[%clk 0:00:19.1]} 28... Rd1+ {[%clk
0:01:13.9]} 29. Rxd1 {[%clk 0:00:18.1]} 29... Rxd1+ {[%clk 0:01:14.8]} 30. Kh2
{[%clk 0:00:18.2]} 30... Qg1+ {[%clk 0:01:14.8]} 31. Kg3 {[%clk 0:00:18.8]}
31... Qe1+ {[%clk 0:01:14.6]} 32. Kh2 {[%clk 0:00:18.8]} 32... Rd2 {[%clk
0:01:09.5]} 33. Qe6 {[%clk 0:00:11.2]} 33... Qf1 {[%clk 0:00:47.3]} 34. Qxe4+
{[%clk 0:00:10.7]} 34... Kg8 {[%clk 0:00:46.1]} 35. Qe8+ {[%clk 0:00:10.6]}
35... Qf8 {[%clk 0:00:45.9]} 36. Qe6+ {[%clk 0:00:10.4]} 36... Qf7 {[%clk
0:00:46]} 37. Qxf7+ {[%clk 0:00:07.4]} 37... Kxf7 {[%clk 0:00:46.8]} 38. Ba5
{[%clk 0:00:07]} 38... Rxc2 {[%clk 0:00:46.8]} 39. Bc3 {[%clk 0:00:07.6]} 39...
g5 {[%clk 0:00:46.1]} 40. a3 {[%clk 0:00:08]} 40... Kg6 {[%clk 0:00:46.2]} 41.
Kg3 {[%clk 0:00:08.5]} 41... h5 {[%clk 0:00:46.6]} 42. Kf3 {[%clk 0:00:09]}
42... Kf5 {[%clk 0:00:42.3]} 43. g4+ {[%clk 0:00:08.3]} 43... hxg4+ {[%clk
0:00:43.2]} 44. hxg4+ {[%clk 0:00:08.7]} 44... Ke6 {[%clk 0:00:43]} 45. Ke3
{[%clk 0:00:08.6]} 45... Rg2 {[%clk 0:00:42]} 46. Kf3 {[%clk 0:00:09.1]} 46...
Rc2 {[%clk 0:00:42.2]} 47. Ke3 {[%clk 0:00:09.3]} 47... Rh2 {[%clk 0:00:42]} 48.
Kf3 {[%clk 0:00:09.9]} 48... Rh3+ {[%clk 0:00:42.3]} 49. Kf2 {[%clk 0:00:08.5]}
49... Rd3 {[%clk 0:00:39.8]} 50. Kg2 {[%clk 0:00:07.2]} 50... Kd5 {[%clk
0:00:38.5]} 51. Kf2 {[%clk 0:00:07.5]} 51... Ke4 {[%clk 0:00:38.5]} 52. Kg2
{[%clk 0:00:03.8]} 52... Kf4 {[%clk 0:00:38.5]} 53. Bb4 {[%clk 0:00:01.5]} 53...
Kxg4 {[%clk 0:00:38.6]} 54. a4 {[%clk 0:00:01.1]} 54... Rd4 {[%clk 0:00:36.4]}
55. Bc3 {[%clk 0:00:01.6]} 55... Rxa4 {[%clk 0:00:36.5]} 0-1

[Event "Early-Titled-Tuesday-Blitz-April-02-2024"]
[Site "Chess.com"]
[Date "2024.04.02"]
[Round "4"]
[White "Anton_Demchenko"]
[Black "tetrix83"]
[Result "1/2-1/2"]
[WhiteElo "2969"]
[BlackElo "2624"]
[TimeControl "180+1"]
[EndTime "8:39:13 PDT"]
[Termination "Game drawn by repetition"]

1. e4 {[%clk 0:03:00.9]} 1... c5 {[%clk 0:02:59.3]} 2. Nf3 {[%clk 0:03:00.8]}
2... Nc6 {[%clk 0:02:59]} 3. Bb5 {[%clk 0:03:00.4]} 3... d6 {[%clk 0:02:53.6]}
4. O-O {[%clk 0:02:56.2]} 4... Nf6 {[%clk 0:02:47.6]} 5. Re1 {[%clk 0:02:54.8]}
5... Bd7 {[%clk 0:02:35]} 6. c3 {[%clk 0:02:53.3]} 6... a6 {[%clk 0:02:35.3]} 7.
Bf1 {[%clk 0:02:45.6]} 7... Bg4 {[%clk 0:02:34.9]} 8. h3 {[%clk 0:02:45.4]} 8...
Bxf3 {[%clk 0:02:35]} 9. Qxf3 {[%clk 0:02:46.3]} 9... g6 {[%clk 0:02:33.5]} 10.
d3 {[%clk 0:02:45.8]} 10... Bg7 {[%clk 0:02:33.5]} 11. Be3 {[%clk 0:02:46.5]}
11... Nd7 {[%clk 0:02:31.5]} 12. Qd1 {[%clk 0:02:46.2]} 12... Qb6 {[%clk
0:02:23.9]} 13. Qc2 {[%clk 0:02:44.8]} 13... O-O {[%clk 0:02:23.1]} 14. Nd2
{[%clk 0:02:45.4]} 14... Rac8 {[%clk 0:02:23.2]} 15. a4 {[%clk 0:02:36.1]} 15...
Rfd8 {[%clk 0:02:08.3]} 16. Ra2 {[%clk 0:02:28.4]} 16... e6 {[%clk 0:01:53.3]}
17. f4 {[%clk 0:02:19.4]} 17... d5 {[%clk 0:01:49]} 18. Bf2 {[%clk 0:02:18.9]}
18... Qc7 {[%clk 0:01:37.7]} 19. g3 {[%clk 0:02:15.8]} 19... b5 {[%clk
0:01:34.4]} 20. axb5 {[%clk 0:02:15.4]} 20... axb5 {[%clk 0:01:35.3]} 21. exd5
{[%clk 0:02:10]} 21... exd5 {[%clk 0:01:35.1]} 22. Bg2 {[%clk 0:02:10.8]} 22...
d4 {[%clk 0:01:26.7]} 23. Ra6 {[%clk 0:01:58.4]} 23... Ndb8 {[%clk 0:01:17.6]}
24. Ra8 {[%clk 0:01:57.7]} 24... dxc3 {[%clk 0:01:16.5]} 25. bxc3 {[%clk
0:01:57.5]} 25... b4 {[%clk 0:01:13.9]} 26. Bxc5 {[%clk 0:01:14.7]} 26... Nd4
{[%clk 0:01:11.2]} 27. cxd4 {[%clk 0:01:01.5]} 27... Bxd4+ {[%clk 0:01:10.4]}
28. Kh2 {[%clk 0:01:02.3]} 28... Bxc5 {[%clk 0:01:06.9]} 29. Qb3 {[%clk
0:01:02.5]} 29... Bd4 {[%clk 0:00:57.5]} 30. Nc4 {[%clk 0:00:58.2]} 30... Bc3
{[%clk 0:00:51.1]} 31. Rd1 {[%clk 0:00:56.1]} 31... Nc6 {[%clk 0:00:50.8]} 32.
Rxc8 {[%clk 0:00:55.3]} 32... Rxc8 {[%clk 0:00:51.1]} 33. h4 {[%clk 0:00:53.9]}
33... Nd4 {[%clk 0:00:50.4]} 34. Qa4 {[%clk 0:00:52.7]} 34... Qe7 {[%clk
0:00:45.7]} 35. Ne5 {[%clk 0:00:50.6]} 35... Nf5 {[%clk 0:00:37.4]} 36. Qa6
{[%clk 0:00:30.7]} 36... Rf8 {[%clk 0:00:19]} 37. Qb5 {[%clk 0:00:27.2]} 37...
Ne3 {[%clk 0:00:16.2]} 38. Rb1 {[%clk 0:00:27.1]} 38... Nxg2 {[%clk 0:00:15.5]}
39. Kxg2 {[%clk 0:00:28]} 39... Re8 {[%clk 0:00:15.2]} 40. Qd5 {[%clk
0:00:24.5]} 40... Bxe5 {[%clk 0:00:14.9]} 41. fxe5 {[%clk 0:00:23.5]} 41... Rc8
{[%clk 0:00:14.3]} 42. Kh3 {[%clk 0:00:17.6]} 42... Rd8 {[%clk 0:00:13.8]} 43.
Qe4 {[%clk 0:00:16.3]} 43... Qd7+ {[%clk 0:00:13.9]} 44. Kg2 {[%clk 0:00:16.8]}
44... Qxd3 {[%clk 0:00:14]} 45. Qxd3 {[%clk 0:00:17.2]} 45... Rxd3 {[%clk
0:00:14.7]} 46. Rxb4 {[%clk 0:00:17.9]} 46... Re3 {[%clk 0:00:14.9]} 47. Rb5
{[%clk 0:00:18.5]} 47... h5 {[%clk 0:00:14.8]} 48. Kf2 {[%clk 0:00:19.3]} 48...
Re4 {[%clk 0:00:15.1]} 49. Kf3 {[%clk 0:00:20]} 49... Re1 {[%clk 0:00:15.5]} 50.
Kf2 {[%clk 0:00:19.2]} 50... Re4 {[%clk 0:00:15.1]} 51. Kf3 {[%clk 0:00:19.9]}
51... Re1 {[%clk 0:00:15.4]} 52. Kf2 {[%clk 0:00:18.7]} 52... Re4 {[%clk
0:00:15.5]} 1/2-1/2

[Event "Early-Titled-Tuesday-Blitz-April-02-2024"]
[Site "Chess.com"]
[Date "2024.04.02"]
[Round "4"]
[White "Sofia_Blokhin"]
[Black "Sanyura"]
[Result "1/2-1/2"]
[WhiteElo "2265"]
[BlackElo "2618"]
[TimeControl "180+1"]
[EndTime "8:39:17 PDT"]
[Termination "Game drawn by repetition"]

1. d4 {[%clk 0:03:00.9]} 1... Nf6 {[%clk 0:02:43.4]} 2. c4 {[%clk 0:02:59.6]}
2... c5 {[%clk 0:02:40.5]} 3. d5 {[%clk 0:02:58.1]} 3... b5 {[%clk 0:02:40]} 4.
cxb5 {[%clk 0:02:57.3]} 4... a6 {[%clk 0:02:40]} 5. bxa6 {[%clk 0:02:57]} 5...
g6 {[%clk 0:02:35.2]} 6. Nc3 {[%clk 0:02:55.8]} 6... Bg7 {[%clk 0:02:34.8]} 7.
e4 {[%clk 0:02:55.8]} 7... O-O {[%clk 0:02:27.7]} 8. Be2 {[%clk 0:02:53.7]} 8...
Bxa6 {[%clk 0:02:23.3]} 9. Nf3 {[%clk 0:02:53.2]} 9... d6 {[%clk 0:02:21.7]} 10.
O-O {[%clk 0:02:52.3]} 10... Nbd7 {[%clk 0:02:18]} 11. a4 {[%clk 0:02:43.5]}
11... Qa5 {[%clk 0:02:07.9]} 12. Bd2 {[%clk 0:02:35.4]} 12... Qb4 {[%clk
0:01:55.9]} 13. Bxa6 {[%clk 0:02:16.7]} 13... Rxa6 {[%clk 0:01:55]} 14. Qe2
{[%clk 0:02:13.2]} 14... Rfa8 {[%clk 0:01:49.7]} 15. b3 {[%clk 0:01:56.4]} 15...
Qb7 {[%clk 0:00:30.3]} 16. Rab1 {[%clk 0:01:50.3]} 16... Nh5 {[%clk 0:00:20.3]}
17. Nb5 {[%clk 0:01:45.2]} 17... Rb6 {[%clk 0:00:18.3]} 18. Bg5 {[%clk
0:01:27.2]} 18... Ne5 {[%clk 0:00:15.7]} 19. Nxe5 {[%clk 0:01:22.9]} 19... Bxe5
{[%clk 0:00:16.6]} 20. f4 {[%clk 0:01:13.7]} 20... Bf6 {[%clk 0:00:12.9]} 21. g4
{[%clk 0:00:54.1]} 21... Bxg5 {[%clk 0:00:10.9]} 22. fxg5 {[%clk 0:00:53.1]}
22... Ng7 {[%clk 0:00:09.7]} 23. Qf3 {[%clk 0:00:48.7]} 23... e6 {[%clk
0:00:09.1]} 24. Rbd1 {[%clk 0:00:35.6]} 24... Rf8 {[%clk 0:00:07.1]} 25. Rf2
{[%clk 0:00:29.1]} 25... Rxb5 {[%clk 0:00:06.9]} 26. axb5 {[%clk 0:00:28.6]}
26... Qxb5 {[%clk 0:00:07.8]} 27. dxe6 {[%clk 0:00:26.5]} 27... Nxe6 {[%clk
0:00:07.7]} 28. Rxd6 {[%clk 0:00:25.3]} 28... Nxg5 {[%clk 0:00:07.2]} 29. Qe3
{[%clk 0:00:21.7]} 29... h6 {[%clk 0:00:07]} 30. Rdf6 {[%clk 0:00:16.6]} 30...
Qb7 {[%clk 0:00:02.9]} 31. R6f4 {[%clk 0:00:13.5]} 31... Ra8 {[%clk 0:00:02.6]}
32. h4 {[%clk 0:00:13.4]} 32... Ra1+ {[%clk 0:00:02.3]} 33. Kg2 {[%clk
0:00:13.5]} 33... Ne6 {[%clk 0:00:02.4]} 34. Rxf7 {[%clk 0:00:12.3]} 34... Qc6
{[%clk 0:00:02]} 35. R7f6 {[%clk 0:00:09.3]} 35... Kg7 {[%clk 0:00:02.1]} 36.
Rf7+ {[%clk 0:00:09.2]} 36... Kg8 {[%clk 0:00:02.1]} 37. R7f6 {[%clk 0:00:09.1]}
37... Kg7 {[%clk 0:00:02.5]} 38. g5 {[%clk 0:00:08.3]} 38... hxg5 {[%clk
0:00:02.6]} 39. hxg5 {[%clk 0:00:08.2]} 39... c4 {[%clk 0:00:02.5]} 40. Rf7+
{[%clk 0:00:08.3]} 40... Kg8 {[%clk 0:00:02.4]} 41. R7f6 {[%clk 0:00:06]} 41...
Kg7 {[%clk 0:00:02.4]} 42. Rf7+ {[%clk 0:00:06.1]} 42... Kg8 {[%clk 0:00:02.6]}
43. R7f6 {[%clk 0:00:05.9]} 43... Kg7 {[%clk 0:00:03.1]} 1/2-1/2